[Event "Limburg Open 2022"]
[Site "Maastricht"]
[Date "2022.06.06"]
[Round "6.14"]
[White "Roebers, Eline"]
[Black "Albers, SaÅ¡a"]
[Result "1-0"]
[ECO "B12"]
[WhiteElo "2378"]
[BlackElo "2199"]
[PlyCount "55"]
[EventDate "2022.06.03"]
[EventType "swiss"]
[EventRounds "7"]
[EventCountry "NED"]
[SourceTitle "Limburg Open"]
[Source "Limburg Open"]
[SourceDate "2022.06.06"]
[SourceVersion "7"]
[SourceVersionDate "2022.06.06"]
[SourceQuality "1"]
[TimeControl "7200+15"]

1. e4 {[%emt 10:39:07]} c6 {[%emt 0:00:05]} 2. d4 {[%emt 0:00:03]} d5 {[%emt 0:
00:05]} 3. e5 {[%emt 0:00:03]} c5 {[%emt 0:00:05]} 4. Nf3 {[%emt 0:00:03]} cxd4
{[%emt 0:04:42]} 5. Nxd4 {[%emt 0:00:12]} Nc6 {[%emt 0:04:11]} 6. Nxc6 {
[%emt 0:00:05]} bxc6 {[%emt 0:00:05]} 7. Bd3 {[%emt 0:00:04]} e6 {[%emt 0:00:
41]} 8. O-O {[%emt 0:00:05]} Ne7 {[%emt 0:00:35]} 9. Be3 {[%emt 0:00:21]} Nf5 {
[%emt 0:12:07]} 10. Bxf5 {[%emt 0:15:55]} exf5 {[%emt 0:00:02]} 11. c4 {
[%emt 0:04:07]} Be7 {[%emt 0:19:36]} 12. cxd5 {[%emt 0:17:04]} cxd5 {[%emt 0:
05:27]} 13. Nc3 {[%emt 0:00:05]} Be6 {[%emt 0:00:57]} 14. Qa4+ {[%emt 0:01:51]}
Qd7 {[%emt 0:11:14]} 15. Qxd7+ {[%emt 0:00:12]} Kxd7 {[%emt 0:00:02]} 16. Rfd1
{[%emt 0:00:24]} Rhb8 {[%emt 0:00:34]} 17. Nxd5 {[%emt 0:17:52]} Bxd5 {[%emt 0:
00:19]} 18. Rxd5+ {[%emt 0:00:04]} Ke6 {[%emt 0:00:22]} 19. Rd2 {[%emt 0:10:27]
} Rb4 {[%emt 0:21:00]} 20. g3 {[%emt 0:09:18]} g5 {[%emt 0:21:05]} 21. f3 {
[%emt 0:04:18]} a5 {[%emt 0:07:24]} 22. Rc1 {[%emt 0:06:33]} f4 {[%emt 0:09:26]
} 23. Bf2 {[%emt 0:01:19]} Ra6 {[%emt 0:03:14]} 24. Rc7 {[%emt 0:00:51]} fxg3 {
[%emt 0:02:07]} 25. hxg3 {[%emt 0:00:13]} Bf8 {[%emt 0:00:14]} 26. Rd8 {
[%emt 0:02:34]} Bg7 {[%emt 0:00:49]} 27. Re8+ {[%emt 0:00:21]} Kd5 {[%emt 0:00:
01]} 28. Rc5# {[%emt 0:00:06]} 1-0

[Event "Limburg Open 2022"]
[Site "Maastricht"]
[Date "2022.06.07"]
[Round "7.1"]
[White "Van Foreest, Lucas"]
[Black "Donchenko, Alexander"]
[Result "1/2-1/2"]
[ECO "E35"]
[WhiteElo "2553"]
[BlackElo "2602"]
[PlyCount "70"]
[EventDate "2022.06.03"]
[EventType "swiss"]
[EventRounds "7"]
[EventCountry "NED"]
[SourceTitle "Limburg Open"]
[Source "Limburg Open"]
[SourceDate "2022.06.06"]
[SourceVersion "7"]
[SourceVersionDate "2022.06.06"]
[SourceQuality "1"]
[TimeControl "7200+15"]

1. d4 {[%emt 0:00:08]} Nf6 {[%emt 0:00:12]} 2. c4 {[%emt 0:00:05]} e6 {[%emt 0:
00:07]} 3. Nc3 {[%emt 0:00:02]} Bb4 {[%emt 0:00:13]} 4. Qc2 {[%emt 0:00:03]} d5
{[%emt 0:00:17]} 5. cxd5 {[%emt 0:00:11]} exd5 {[%emt 0:00:07]} 6. Bf4 {
[%emt 0:00:03]} O-O {[%emt 0:00:32]} 7. e3 {[%emt 0:00:24]} Nh5 {[%emt 0:00:15]
} 8. Bg3 {[%emt 0:01:05]} c6 {[%emt 0:05:27]} 9. Bd3 {[%emt 0:00:17]} g6 {
[%emt 0:01:55]} 10. Nf3 {[%emt 0:13:29]} Be7 {[%emt 0:12:38]} 11. Bxb8 {
[%emt 0:24:35]} Rxb8 {[%emt 0:00:07]} 12. Rb1 {[%emt 0:00:09]} Bd6 {[%emt 0:06:
04]} 13. O-O {[%emt 0:11:51]} Qe7 {[%emt 0:04:08]} 14. Rfe1 {[%emt 0:01:04]} f5
{[%emt 0:09:27]} 15. Qd1 {[%emt 0:14:07]} Nf6 {[%emt 0:03:05]} 16. Nd2 {
[%emt 0:01:17]} Ne4 {[%emt 0:13:06]} 17. Nf1 {[%emt 0:00:18]} Be6 {[%emt 0:02:
31]} 18. f3 {[%emt 0:00:03]} Nf6 {[%emt 0:02:01]} 19. Qc2 {[%emt 0:00:07]} Kh8
{[%emt 0:02:10]} 20. Re2 {[%emt 0:00:25]} Rbe8 {[%emt 0:04:09]} 21. a3 {
[%emt 0:00:01]} a5 {[%emt 0:02:59]} 22. Rbe1 {[%emt 0:00:02]} Qg7 {[%emt 0:01:
43]} 23. Qd2 {[%emt 0:03:35]} Bc8 {[%emt 0:04:58]} 24. Na4 {[%emt 0:01:44]} b5
{[%emt 0:05:23]} 25. Nc5 {[%emt 0:00:25]} a4 {[%emt 0:01:04]} 26. Qc2 {[%emt 0:
00:17]} f4 {[%emt 0:03:06]} 27. b4 {[%emt 0:09:41]} fxe3 {[%emt 0:02:31]} 28.
Rxe3 {[%emt 0:00:01]} Rxe3 {[%emt 0:00:42]} 29. Rxe3 {[%emt 0:04:37]} Nh5 {
[%emt 0:14:38]} 30. Qc3 {[%emt 0:01:14]} Be7 {[%emt 0:02:01]} 31. Ne6 {[%emt 0:
00:30]} Bxe6 {[%emt 0:00:03]} 32. Rxe6 {[%emt 0:00:04]} Bf6 {[%emt 0:00:31]}
33. Kh1 {[%emt 0:00:05]} Bxd4 {[%emt 0:00:13]} 34. Qc2 {[%emt 0:00:11]} c5 {
[%emt 0:07:44]} 35. bxc5 {[%emt 0:01:09]} Nf4 {[%emt 0:00:17]} 1/2-1/2

[Event "Limburg Open 2022"]
[Site "Maastricht"]
[Date "2022.06.07"]
[Round "7.2"]
[White "Warmerdam, Max"]
[Black "Dardha, Daniel"]
[Result "1/2-1/2"]
[ECO "D33"]
[WhiteElo "2613"]
[BlackElo "2555"]
[PlyCount "236"]
[EventDate "2022.06.03"]
[EventType "swiss"]
[EventRounds "7"]
[EventCountry "NED"]
[SourceTitle "Limburg Open"]
[Source "Limburg Open"]
[SourceDate "2022.06.06"]
[SourceVersion "7"]
[SourceVersionDate "2022.06.06"]
[SourceQuality "1"]
[TimeControl "7200+15"]

1. c4 {[%emt 0:00:33]} Nf6 {[%emt 0:00:59]} 2. Nc3 {[%emt 0:00:06]} c5 {
[%emt 0:00:35]} 3. Nf3 {[%emt 0:01:08]} e6 {[%emt 0:00:11]} 4. g3 {[%emt 0:02:
21]} d5 {[%emt 0:01:24]} 5. cxd5 {[%emt 0:00:05]} exd5 {[%emt 0:00:05]} 6. d4 {
[%emt 0:00:03]} Nc6 {[%emt 0:00:11]} 7. a3 {[%emt 0:00:05]} c4 {[%emt 0:05:39]}
8. Bg5 {[%emt 0:04:19]} Be7 {[%emt 0:01:45]} 9. Bg2 {[%emt 0:02:15]} O-O {
[%emt 0:02:15]} 10. e3 {[%emt 0:29:15]} Be6 {[%emt 0:02:56]} 11. O-O {[%emt 0:
13:16]} h6 {[%emt 0:06:18]} 12. Bxf6 {[%emt 0:00:05]} Bxf6 {[%emt 0:00:04]} 13.
Kh1 {[%emt 0:09:19]} Qd7 {[%emt 0:10:24]} 14. Ng1 {[%emt 0:00:46]} b5 {[%emt 0:
12:35]} 15. Nge2 {[%emt 0:01:26]} Rab8 {[%emt 0:15:37]} 16. Nf4 {[%emt 0:00:40]
} Ne7 {[%emt 0:00:05]} 17. Nh5 {[%emt 0:01:44]} Bg5 {[%emt 0:02:32]} 18. h4 {
[%emt 0:04:09]} Bg4 {[%emt 0:16:30]} 19. Bf3 {[%emt 0:00:05]} Bxh5 {[%emt 0:00:
42]} 20. Bxh5 {[%emt 0:00:05]} Bf6 {[%emt 0:01:10]} 21. Bf3 {[%emt 0:04:24]} a5
{[%emt 0:02:26]} 22. b4 {[%emt 0:01:47]} cxb3 {[%emt 0:07:13]} 23. Qxb3 {
[%emt 0:00:10]} Bxh4 {[%emt 0:00:49]} 24. Nxd5 {[%emt 0:10:57]} Nxd5 {[%emt 0:
01:59]} 25. Qxd5 {[%emt 0:00:05]} Qh3+ {[%emt 0:05:12]} 26. Kg1 {[%emt 0:00:04]
} Bxg3 {[%emt 0:00:17]} 27. fxg3 {[%emt 0:00:05]} Qxg3+ {[%emt 0:00:05]} 28.
Kh1 {[%emt 0:07:24]} Qh3+ {[%emt 0:00:16]} 29. Kg1 {[%emt 0:00:02]} Qg3+ {
[%emt 0:00:22]} 30. Bg2 {[%emt 0:01:05]} Qxe3+ {[%emt 0:00:09]} 31. Rf2 {
[%emt 0:00:09]} b4 {[%emt 0:00:41]} 32. axb4 {[%emt 0:01:04]} axb4 {[%emt 0:01:
43]} 33. Qe4 {[%emt 0:01:18]} Qc3 {[%emt 0:03:24]} 34. Rb1 {[%emt 0:12:51]} b3
{[%emt 0:02:01]} 35. d5 {[%emt 0:01:27]} Qc5 {[%emt 0:02:35]} 36. Qd3 {[%emt 0:
03:49]} Rfe8 {[%emt 0:03:34]} 37. Rxb3 {[%emt 0:01:00]} Re1+ {[%emt 0:00:09]}
38. Bf1 {[%emt 0:00:08]} Rd8 {[%emt 0:05:29]} 39. Rb5 {[%emt 0:00:05]} Qa7 {
[%emt 0:00:28]} 40. d6 {[%emt 0:03:44]} Re6 {[%emt 0:02:17]} 41. Rd5 {[%emt 0:
01:28]} Rg6+ {[%emt 0:00:39]} 42. Bg2 {[%emt 0:00:29]} Qa1+ {[%emt 0:00:51]}
43. Rf1 {[%emt 0:00:02]} Qb2 {[%emt 0:00:55]} 44. Rf2 {[%emt 0:00:23]} Qa1+ {
[%emt 0:00:21]} 45. Rf1 {[%emt 0:00:09]} Qb2 {[%emt 0:00:05]} 46. Qe4 {[%emt 0:
02:27]} Qb6+ {[%emt 0:00:35]} 47. Kh1 {[%emt 0:00:02]} Rgxd6 {[%emt 0:00:27]}
48. Qe7 {[%emt 0:00:24]} Rxd5 {[%emt 0:01:05]} 49. Qxf7+ {[%emt 0:00:01]} Kh8 {
[%emt 0:00:01]} 50. Bxd5 {[%emt 0:00:02]} Qd4 {[%emt 0:00:24]} 51. Bg2 {
[%emt 0:00:45]} Qh4+ {[%emt 0:00:02]} 52. Kg1 {[%emt 0:00:01]} Qd4+ {[%emt 0:
00:11]} 53. Kh1 {[%emt 0:00:02]} Qh4+ {[%emt 0:00:04]} 54. Kg1 {[%emt 0:00:01]}
Qd4+ {[%emt 0:00:03]} 55. Rf2 {[%emt 0:00:31]} Rb8 {[%emt 0:00:08]} 56. Qf4 {
[%emt 0:02:42]} Qxf4 {[%emt 0:01:06]} 57. Rxf4 {[%emt 0:00:02]} g5 {[%emt 0:00:
37]} 58. Rf7 {[%emt 0:00:02]} Rd8 {[%emt 0:00:42]} 59. Kf2 {[%emt 0:00:14]} Kg8
{[%emt 0:00:01]} 60. Ra7 {[%emt 0:00:02]} Rd2+ {[%emt 0:00:20]} 61. Kg3 {
[%emt 0:00:02]} h5 {[%emt 0:00:04]} 62. Be4 {[%emt 0:00:32]} Kf8 {[%emt 0:00:
11]} 63. Bg6 {[%emt 0:00:05]} Rd4 {[%emt 0:00:20]} 64. Bxh5 {[%emt 0:00:09]}
Rf4 {[%emt 0:00:02]} 65. Rb7 {[%emt 0:00:35]} Kg8 {[%emt 0:00:19]} 66. Rb5 {
[%emt 0:00:23]} Kf8 {[%emt 0:00:07]} 67. Rxg5 {[%emt 0:00:07]} Re4 {[%emt 0:00:
56]} 68. Bf3 {[%emt 0:00:44]} Re7 {[%emt 0:00:43]} 69. Ra5 {[%emt 0:00:11]} Kg7
{[%emt 0:00:07]} 70. Kf4 {[%emt 0:00:23]} Rf7+ {[%emt 0:00:04]} 71. Kg4 {
[%emt 0:00:05]} Re7 {[%emt 0:00:11]} 72. Kg5 {[%emt 0:00:06]} Rf7 {[%emt 0:00:
06]} 73. Bd5 {[%emt 0:00:19]} Re7 {[%emt 0:00:31]} 74. Kf5 {[%emt 0:00:33]} Rc7
{[%emt 0:01:28]} 75. Ra6 {[%emt 0:00:04]} Kf8 {[%emt 0:01:01]} 76. Rh6 {
[%emt 0:00:56]} Ke7 {[%emt 0:00:04]} 77. Ke5 {[%emt 0:00:03]} Kd7 {[%emt 0:00:
07]} 78. Rh8 {[%emt 0:00:16]} Ke7 {[%emt 0:00:01]} 79. Rg8 {[%emt 0:00:49]} Kd7
{[%emt 0:00:11]} 80. Rg6 {[%emt 0:00:02]} Ke7 {[%emt 0:00:03]} 81. Rf6 {
[%emt 0:00:09]} Kd7 {[%emt 0:00:12]} 82. Rh6 {[%emt 0:00:01]} Ke7 {[%emt 0:00:
04]} 83. Bc6 {[%emt 0:00:01]} Kd8 {[%emt 0:00:03]} 84. Kd6 {[%emt 0:00:55]}
Rd7+ {[%emt 0:00:00]} 85. Kc5 {[%emt 0:00:05]} Rg7 {[%emt 0:00:24]} 86. Rh8+ {
[%emt 0:00:22]} Ke7 {[%emt 0:00:36]} 87. Re8+ {[%emt 0:00:02]} Kf6 {[%emt 0:00:
04]} 88. Kd6 {[%emt 0:00:04]} Kg5 {[%emt 0:00:10]} 89. Ke5 {[%emt 0:00:05]} Rg6
{[%emt 0:00:11]} 90. Bd5 {[%emt 0:00:19]} Rg7 {[%emt 0:00:23]} 91. Rh8 {
[%emt 0:00:16]} Re7+ {[%emt 0:00:06]} 92. Be6 {[%emt 0:00:02]} Rg7 {[%emt 0:00:
04]} 93. Rh1 {[%emt 0:00:02]} Rg6 {[%emt 0:00:06]} 94. Bf7 {[%emt 0:01:00]} Rg7
{[%emt 0:00:04]} 95. Rf1 {[%emt 0:00:03]} Kh6 {[%emt 0:00:03]} 96. Be8 {
[%emt 0:00:30]} Kg5 {[%emt 0:00:21]} 97. Ke6 {[%emt 0:00:17]} Ra7 {[%emt 0:00:
40]} 98. Bc6 {[%emt 0:00:26]} Ra6 {[%emt 0:00:12]} 99. Kd5 {[%emt 0:00:09]} Ra3
{[%emt 0:00:35]} 100. Ke4 {[%emt 0:00:05]} Rg3 {[%emt 0:00:28]} 101. Ke5 {
[%emt 0:00:14]} Re3+ {[%emt 0:00:08]} 102. Be4 {[%emt 0:00:01]} Rg3 {[%emt 0:
00:03]} 103. Bf3 {[%emt 0:00:05]} Kg6 {[%emt 0:00:38]} 104. Bd5 {[%emt 0:00:09]
} Rg5+ {[%emt 0:00:12]} 105. Ke6 {[%emt 0:00:03]} Rg3 {[%emt 0:00:26]} 106.
Be4+ {[%emt 0:00:02]} Kg5 {[%emt 0:00:10]} 107. Rf8 {[%emt 0:00:01]} Re3 {
[%emt 0:00:08]} 108. Ke5 {[%emt 0:00:03]} Rg3 {[%emt 0:00:03]} 109. Bf3 {
[%emt 0:01:31]} Kh4 {[%emt 0:00:01]} 110. Ke4 {[%emt 0:00:05]} Rg7 {[%emt 0:00:
20]} 111. Rf5 {[%emt 0:00:37]} Rg5 {[%emt 0:00:08]} 112. Rf4+ {[%emt 0:00:10]}
Kg3 {[%emt 0:00:05]} 113. Ke3 {[%emt 0:00:02]} Re5+ {[%emt 0:00:10]} 114. Be4 {
[%emt 0:00:01]} Rg5 {[%emt 0:00:06]} 115. Rf1 {[%emt 0:00:05]} Kg4 {[%emt 0:00:
22]} 116. Rh1 {[%emt 0:00:02]} Kg3 {[%emt 0:00:09]} 117. Rg1+ {[%emt 0:00:12]}
Kh4 {[%emt 0:00:02]} 118. Rxg5 {[%emt 0:00:04]} Kxg5 {[%emt 0:00:02]} 1/2-1/2

[Event "Limburg Open 2022"]
[Site "Maastricht"]
[Date "2022.06.07"]
[Round "7.3"]
[White "Zwirs, Nico"]
[Black "Braun, Christian"]
[Result "1/2-1/2"]
[ECO "C11"]
[WhiteElo "2475"]
[BlackElo "2428"]
[PlyCount "62"]
[EventDate "2022.06.03"]
[EventType "swiss"]
[EventRounds "7"]
[EventCountry "NED"]
[SourceTitle "Limburg Open"]
[Source "Limburg Open"]
[SourceDate "2022.06.06"]
[SourceVersion "7"]
[SourceVersionDate "2022.06.06"]
[SourceQuality "1"]
[TimeControl "7200+15"]

1. e4 {[%emt 0:00:03]} e6 {[%emt 0:00:08]} 2. d4 {[%emt 0:00:04]} d5 {[%emt 0:
00:05]} 3. Nc3 {[%emt 0:00:06]} Nf6 {[%emt 0:00:05]} 4. e5 {[%emt 0:00:04]}
Nfd7 {[%emt 0:00:06]} 5. f4 {[%emt 0:00:04]} c5 {[%emt 0:00:07]} 6. Nf3 {
[%emt 0:00:02]} Nc6 {[%emt 0:00:08]} 7. Be3 {[%emt 0:00:06]} Be7 {[%emt 0:00:
07]} 8. Qd2 {[%emt 0:00:17]} a6 {[%emt 0:00:07]} 9. Bd3 {[%emt 0:00:55]} b5 {
[%emt 0:01:21]} 10. Qf2 {[%emt 0:01:06]} c4 {[%emt 0:00:23]} 11. Be2 {[%emt 0:
00:11]} Nb6 {[%emt 0:00:23]} 12. O-O {[%emt 0:03:54]} Bd7 {[%emt 0:01:56]} 13.
Qg3 {[%emt 0:06:46]} g6 {[%emt 0:00:18]} 14. Qh3 {[%emt 0:00:28]} h6 {[%emt 0:
05:51]} 15. Bf2 {[%emt 0:09:30]} Qc7 {[%emt 0:03:06]} 16. Bh4 {[%emt 0:02:24]}
O-O-O {[%emt 0:00:35]} 17. Bxe7 {[%emt 0:01:16]} Nxe7 {[%emt 0:02:22]} 18. Nd1
{[%emt 0:00:08]} Kb8 {[%emt 0:04:33]} 19. Ne3 {[%emt 0:02:46]} Nf5 {[%emt 0:00:
26]} 20. Nxf5 {[%emt 0:01:21]} gxf5 {[%emt 0:01:17]} 21. Qh4 {[%emt 0:12:01]}
Rdg8 {[%emt 0:02:14]} 22. Qe1 {[%emt 0:00:17]} Nc8 {[%emt 0:02:39]} 23. b3 {
[%emt 0:03:40]} Ne7 {[%emt 0:07:18]} 24. a4 {[%emt 0:03:33]} Bc6 {[%emt 0:04:
35]} 25. axb5 {[%emt 0:05:01]} Bxb5 {[%emt 0:01:30]} 26. Qb4 {[%emt 0:05:49]}
Nc6 {[%emt 0:00:27]} 27. Qc5 {[%emt 0:03:31]} Qe7 {[%emt 0:03:47]} 28. Qb6+ {
[%emt 0:11:14]} Qb7 {[%emt 0:00:10]} 29. Qc5 {[%emt 0:00:10]} Qe7 {[%emt 0:00:
05]} 30. Qb6+ {[%emt 0:05:17]} Qb7 {[%emt 0:00:06]} 31. Qc5 {[%emt 0:00:09]}
Qe7 {[%emt 0:00:28]} 1/2-1/2

[Event "Limburg Open 2022"]
[Site "Maastricht"]
[Date "2022.06.07"]
[Round "7.4"]
[White "Lahaye, Rick"]
[Black "Decoster, Frederic"]
[Result "0-1"]
[ECO "A16"]
[WhiteElo "2412"]
[BlackElo "2295"]
[PlyCount "80"]
[EventDate "2022.06.03"]
[EventType "swiss"]
[EventRounds "7"]
[EventCountry "NED"]
[SourceTitle "Limburg Open"]
[Source "Limburg Open"]
[SourceDate "2022.06.06"]
[SourceVersion "7"]
[SourceVersionDate "2022.06.06"]
[SourceQuality "1"]
[TimeControl "7200+15"]

1. e3 {[%emt 0:00:02]} g6 {[%emt 0:01:23]} 2. c4 {[%emt 0:01:13]} Nf6 {[%emt 0:
00:14]} 3. Nc3 {[%emt 0:00:29]} Bg7 {[%emt 0:00:13]} 4. g4 {[%emt 0:00:26]} h6
{[%emt 0:02:31]} 5. Bg2 {[%emt 0:00:34]} d6 {[%emt 0:01:40]} 6. h3 {[%emt 0:01:
20]} e5 {[%emt 0:01:41]} 7. Nge2 {[%emt 0:00:13]} O-O {[%emt 0:02:42]} 8. d4 {
[%emt 0:01:17]} Nbd7 {[%emt 0:07:54]} 9. O-O {[%emt 0:07:48]} Re8 {[%emt 0:05:
32]} 10. Ng3 {[%emt 0:06:54]} a6 {[%emt 0:09:55]} 11. a4 {[%emt 0:09:42]} a5 {
[%emt 0:03:48]} 12. f4 {[%emt 0:01:32]} c6 {[%emt 0:06:22]} 13. Nce4 {[%emt 0:
25:51]} Qc7 {[%emt 0:04:02]} 14. c5 {[%emt 0:04:16]} exf4 {[%emt 0:17:37]} 15.
cxd6 {[%emt 0:01:17]} Qd8 {[%emt 0:00:37]} 16. Rxf4 {[%emt 0:00:39]} Nxe4 {
[%emt 0:03:28]} 17. Nxe4 {[%emt 0:00:40]} Nf6 {[%emt 0:01:06]} 18. Nxf6+ {
[%emt 0:07:35]} Bxf6 {[%emt 0:00:07]} 19. Qf3 {[%emt 0:00:07]} Bg5 {[%emt 0:11:
30]} 20. Rxf7 {[%emt 0:01:54]} Qxd6 {[%emt 0:01:17]} 21. Bd2 {[%emt 0:00:47]}
Be6 {[%emt 0:03:05]} 22. Rxb7 {[%emt 0:00:46]} Bd5 {[%emt 0:01:51]} 23. Qf2 {
[%emt 0:17:02]} Rf8 {[%emt 0:03:09]} 24. Bxd5+ {[%emt 0:00:52]} Qxd5 {[%emt 0:
01:30]} 25. Qg2 {[%emt 0:03:24]} Rf3 {[%emt 0:01:18]} 26. Rf1 {[%emt 0:01:55]}
Raf8 {[%emt 0:00:58]} 27. Rxf3 {[%emt 0:00:49]} Rxf3 {[%emt 0:01:04]} 28. Rb8+
{[%emt 0:15:42]} Kf7 {[%emt 0:02:32]} 29. Rb7+ {[%emt 0:01:29]} Ke8 {[%emt 0:
02:21]} 30. Rb8+ {[%emt 0:02:49]} Kd7 {[%emt 0:00:45]} 31. Rb7+ {[%emt 0:07:01]
} Kc8 {[%emt 0:00:12]} 32. Rh7 {[%emt 0:01:05]} Kd8 {[%emt 0:05:59]} 33. Rh8+ {
[%emt 0:00:16]} Ke7 {[%emt 0:05:52]} 34. Rh7+ {[%emt 0:00:01]} Kf8 {[%emt 0:00:
14]} 35. Rh8+ {[%emt 0:00:39]} Kg7 {[%emt 0:00:08]} 36. Ra8 {[%emt 0:00:12]}
Bh4 {[%emt 0:00:38]} 37. Ra7+ {[%emt 0:00:29]} Kf6 {[%emt 0:00:35]} 38. Rxa5 {
[%emt 0:00:15]} Qe4 {[%emt 0:00:13]} 39. Re5 {[%emt 0:00:38]} Qb1+ {[%emt 0:00:
06]} 40. Kh2 Bg3+ {[%emt 0:00:01]} 0-1

[Event "Limburg Open 2022"]
[Site "Maastricht"]
[Date "2022.06.07"]
[Round "7.5"]
[White "Pauly, Carlo"]
[Black "Ondersteijn, Niels"]
[Result "0-1"]
[ECO "E94"]
[WhiteElo "2305"]
[BlackElo "2376"]
[PlyCount "92"]
[EventDate "2022.06.03"]
[EventType "swiss"]
[EventRounds "7"]
[EventCountry "NED"]
[SourceTitle "Limburg Open"]
[Source "Limburg Open"]
[SourceDate "2022.06.06"]
[SourceVersion "7"]
[SourceVersionDate "2022.06.06"]
[SourceQuality "1"]
[TimeControl "7200+15"]

1. d4 {[%emt 0:00:07]} d6 {[%emt 0:04:23]} 2. Nf3 {[%emt 0:00:47]} Nf6 {
[%emt 0:00:14]} 3. c4 {[%emt 0:00:10]} g6 {[%emt 0:00:05]} 4. Nc3 {[%emt 0:00:
26]} Bg7 {[%emt 0:00:06]} 5. e4 {[%emt 0:00:14]} O-O {[%emt 0:00:08]} 6. Be2 {
[%emt 0:00:08]} Nbd7 {[%emt 0:00:08]} 7. O-O {[%emt 0:01:56]} e5 {[%emt 0:00:
05]} 8. Be3 {[%emt 0:01:13]} Qe7 {[%emt 0:00:29]} 9. d5 {[%emt 0:02:08]} c5 {
[%emt 0:02:53]} 10. Ne1 {[%emt 0:03:06]} Kh8 {[%emt 0:00:36]} 11. Nd3 {[%emt 0:
02:49]} Ng8 {[%emt 0:00:52]} 12. Qd2 {[%emt 0:01:19]} f5 {[%emt 0:02:31]} 13.
exf5 {[%emt 0:07:59]} gxf5 {[%emt 0:00:13]} 14. f4 {[%emt 0:01:00]} e4 {
[%emt 0:02:57]} 15. Nf2 {[%emt 0:01:03]} Ndf6 {[%emt 0:04:36]} 16. a3 {[%emt 0:
03:33]} b6 {[%emt 0:04:52]} 17. b4 {[%emt 0:03:13]} h5 {[%emt 0:00:38]} 18. h3
{[%emt 0:07:31]} Nh6 {[%emt 0:12:45]} 19. bxc5 {[%emt 0:03:34]} bxc5 {[%emt 0:
02:51]} 20. Rfb1 {[%emt 0:01:06]} Rg8 {[%emt 0:03:38]} 21. Ra2 {[%emt 0:02:38]}
Kh7 {[%emt 0:10:16]} 22. Bd1 {[%emt 0:08:57]} Bh8 {[%emt 0:14:21]} 23. Nh1 {
[%emt 0:03:38]} Nd7 {[%emt 0:03:23]} 24. Rc1 {[%emt 0:30:42]} Rb8 {[%emt 0:05:
21]} 25. Qf2 {[%emt 0:09:21]} Ba6 {[%emt 0:12:42]} 26. Nb5 {[%emt 0:02:50]}
Bxb5 {[%emt 0:00:54]} 27. cxb5 {[%emt 0:00:04]} Nf6 {[%emt 0:03:24]} 28. Rd2 {
[%emt 0:05:09]} Rxb5 {[%emt 0:00:28]} 29. Qh4 {[%emt 0:01:00]} Qf7 {[%emt 0:04:
46]} 30. Ng3 {[%emt 0:04:06]} Nxd5 {[%emt 0:04:17]} 31. Bxh5 {[%emt 0:06:49]}
Qf6 {[%emt 0:02:32]} 32. Qxf6 {[%emt 0:00:08]} Nxf6 {[%emt 0:01:08]} 33. Be2 {
[%emt 0:00:13]} Rxg3 {[%emt 0:02:47]} 34. Bxb5 {[%emt 0:00:11]} Rxe3 {[%emt 0:
00:11]} 35. Rxd6 {[%emt 0:00:30]} Nh5 {[%emt 0:05:39]} 36. Rxc5 {[%emt 0:01:20]
} Nxf4 {[%emt 0:01:14]} 37. Rc7+ {[%emt 0:01:10]} Bg7 {[%emt 0:00:08]} 38. Rxa7
{[%emt 0:00:23]} Rg3 {[%emt 0:00:28]} 39. Bf1 {[%emt 0:00:28]} e3 {[%emt 0:03:
23]} 40. Kh2 {[%emt 0:02:17]} e2 {[%emt 0:01:31]} 41. Bxe2 {[%emt 0:00:15]}
Rxg2+ {[%emt 0:00:07]} 42. Kh1 {[%emt 0:00:03]} Rxe2 {[%emt 0:00:11]} 43. Rdd7
{[%emt 0:00:41]} Nh5 {[%emt 0:00:20]} 44. a4 {[%emt 0:00:30]} f4 {[%emt 0:00:
54]} 45. Rd3 {[%emt 0:00:49]} Nf5 {[%emt 0:02:16]} 46. Kg1 {[%emt 0:01:55]} Ne3
{[%emt 0:00:19]} 0-1

[Event "Limburg Open 2022"]
[Site "Maastricht"]
[Date "2022.06.07"]
[Round "7.6"]
[White "Van Meegen, Ruud"]
[Black "Fischer, Daniel"]
[Result "1/2-1/2"]
[ECO "D02"]
[WhiteElo "2285"]
[BlackElo "2324"]
[PlyCount "112"]
[EventDate "2022.06.03"]
[EventType "swiss"]
[EventRounds "7"]
[EventCountry "NED"]
[SourceTitle "Limburg Open"]
[Source "Limburg Open"]
[SourceDate "2022.06.06"]
[SourceVersion "7"]
[SourceVersionDate "2022.06.06"]
[SourceQuality "1"]
[TimeControl "7200+15"]

1. Nf3 {[%emt 0:00:15]} d5 {[%emt 0:00:15]} 2. g3 {[%emt 0:00:09]} Nd7 {
[%emt 0:00:26]} 3. d4 {[%emt 0:00:37]} Nb6 {[%emt 0:00:14]} 4. Bg2 {[%emt 0:00:
15]} Bf5 {[%emt 0:00:14]} 5. O-O {[%emt 0:05:22]} e6 {[%emt 0:00:08]} 6. b3 {
[%emt 0:03:37]} Nf6 {[%emt 0:04:59]} 7. Bb2 {[%emt 0:02:53]} c6 {[%emt 0:02:45]
} 8. Nbd2 {[%emt 0:00:53]} a5 {[%emt 0:03:20]} 9. Ne5 {[%emt 0:14:40]} Be7 {
[%emt 0:06:11]} 10. c4 {[%emt 0:05:15]} O-O {[%emt 0:01:43]} 11. Rc1 {[%emt 0:
01:22]} a4 {[%emt 0:03:10]} 12. c5 {[%emt 0:03:29]} Nbd7 {[%emt 0:05:28]} 13.
b4 {[%emt 0:00:28]} a3 {[%emt 0:06:57]} 14. Ba1 {[%emt 0:00:08]} Qc7 {[%emt 0:
01:02]} 15. Re1 {[%emt 0:10:15]} Rfc8 {[%emt 0:06:40]} 16. Qb3 {[%emt 0:01:43]}
b6 {[%emt 0:03:23]} 17. Qc3 {[%emt 0:20:47]} bxc5 {[%emt 0:09:35]} 18. bxc5 {
[%emt 0:02:41]} Nxe5 {[%emt 0:08:28]} 19. dxe5 {[%emt 0:00:21]} Nd7 {[%emt 0:
00:04]} 20. e4 {[%emt 0:10:47]} Bg6 {[%emt 0:03:25]} 21. Qd4 {[%emt 0:00:44]}
Qa7 {[%emt 0:03:03]} 22. Nb3 {[%emt 0:00:39]} Rab8 {[%emt 0:08:38]} 23. exd5 {
[%emt 0:10:20]} cxd5 {[%emt 0:00:47]} 24. c6 {[%emt 0:00:13]} Nb6 {[%emt 0:00:
21]} 25. Bf1 {[%emt 0:00:28]} Rc7 {[%emt 0:01:50]} 26. Qe3 {[%emt 0:07:10]} Nc8
{[%emt 0:07:47]} 27. Bd4 {[%emt 0:00:09]} Qa8 {[%emt 0:01:51]} 28. Nc5 {
[%emt 0:03:26]} Rxc6 {[%emt 0:05:54]} 29. Rc3 {[%emt 0:00:05]} Qa5 {[%emt 0:04:
02]} 30. Rxa3 {[%emt 0:02:36]} Qd8 {[%emt 0:00:11]} 31. Rb3 {[%emt 0:02:27]}
Rcb6 {[%emt 0:10:08]} 32. Rxb6 {[%emt 0:00:47]} Nxb6 {[%emt 0:00:42]} 33. Na6 {
[%emt 0:01:44]} Rb7 {[%emt 0:02:04]} 34. Qb3 {[%emt 0:00:00]} Qc8 {[%emt 0:01:
31]} 35. Bb5 {[%emt 0:07:18]} Nc4 {[%emt 0:01:04]} 36. a4 {[%emt 0:00:07]} Nd2
{[%emt 0:01:24]} 37. Qe3 {[%emt 0:00:24]} Qc2 {[%emt 0:00:30]} 38. Bc3 {
[%emt 0:03:16]} Nb3 {[%emt 0:00:56]} 39. Re2 {[%emt 0:00:39]} Qd1+ {[%emt 0:01:
06]} 40. Re1 {[%emt 0:00:03]} Qg4 {[%emt 0:01:16]} 41. Bc6 {[%emt 0:00:36]} d4
{[%emt 0:00:42]} 42. Bxd4 {[%emt 0:00:05]} Nxd4 {[%emt 0:00:14]} 43. Bxb7 {
[%emt 0:00:17]} Nc2 {[%emt 0:00:07]} 44. Qe2 {[%emt 0:00:32]} Qxa4 {[%emt 0:00:
28]} 45. Rd1 {[%emt 0:00:35]} Nd4 {[%emt 0:00:16]} 46. Qd2 {[%emt 0:00:13]} Bh5
{[%emt 0:00:40]} 47. Qxd4 {[%emt 0:00:22]} Qxd1+ {[%emt 0:00:16]} 48. Qxd1 {
[%emt 0:00:03]} Bxd1 {[%emt 0:00:05]} 49. Nc7 {[%emt 0:00:11]} Bc5 {[%emt 0:00:
28]} 50. Kg2 {[%emt 0:00:05]} Ba4 {[%emt 0:00:30]} 51. f4 {[%emt 0:00:17]} Bb6
{[%emt 0:00:56]} 52. Na6 {[%emt 0:00:09]} Bb5 {[%emt 0:00:16]} 53. Nb4 {
[%emt 0:00:10]} Bc5 {[%emt 0:00:12]} 54. Nc2 {[%emt 0:00:03]} Be2 {[%emt 0:01:
42]} 55. Be4 {[%emt 0:00:29]} h6 {[%emt 0:00:13]} 56. h4 {[%emt 0:00:12]} Kf8 {
[%emt 0:00:42]} 1/2-1/2